bitfinex/quotes_ETHUSD_20241018
["timestamp","ask_amount","ask_price","bid_price","bid_amount"]
[1729239811085,3.7871,2640.6,2640.4,0.04212895]
[1729239811281,3.7871,2640.6,2640.3,0.04220479]
[1729239811487,3.7871,2640.6,2640.5,0.04205311]
[1729239811708,3.7871,2640.6,2640.4,0.04212895]
[1729239812001,3.7871,2640.6,2640.5,0.04205311]
[1729239812708,3.78701,2640.6,2640.2,0.8204]
[1729239812908,3.78701,2640.6,2640.5,0.04205311]
[1729239813113,3.78701,2640.6,2640.2,0.8204]
[1729239813367,3.78701,2640.6,2640.5,0.04205311]
[1729239813493,3.78701,2640.6,2640.2,0.8204]
[1729239813687,3.78701,2640.6,2640.5,0.04205311]
[1729239813892,3.78701,2640.6,2640.2,0.8204]
[1729239814075,3.78701,2640.6,2640.5,0.04205311]
[1729239814280,3.78701,2640.6,2640.2,0.8204]
[1729239814491,3.78701,2640.6,2640.5,0.04205311]
[1729239814718,3.78701,2640.6,2640.2,0.8204]
[1729239814926,3.78701,2640.6,2640.5,0.04205311]
[1729239815103,3.78701,2640.6,2640.2,0.8204]
[1729239815408,3.78701,2640.6,2640.5,0.04205311]
[1729239815778,3.78701,2640.6,2640.2,0.8204]
[1729239816179,3.78701,2640.6,2640.3,0.04220479]
[1729239816381,3.78701,2640.6,2640.2,0.8204]
[1729239816583,3.78701,2640.6,2640.3,0.04220479]
[1729239816776,5.44116611,2640.7,2640.3,0.04220479]
[1729239816777,3.78718,2640.5,2640.3,0.04220479]
[1729239817003,3.78718,2640.5,2640.2,0.8204]
[1729239817213,3.78718,2640.5,2640.3,0.04220479]
[1729239817422,3.78718,2640.5,2640.2,0.8204]
[1729239817602,3.78718,2640.5,2640.3,0.04220479]
[1729239817817,3.78718,2640.5,2640.2,0.8204]
[1729239818017,3.78718,2640.5,2640.3,0.04220479]
[1729239818347,3.78704,2640.6,2640.2,0.8204]
[1729239818521,3.78704,2640.6,2640.4,0.04212895]
[1729239818699,3.78704,2640.6,2640.3,0.04220479]
[1729239818903,3.78704,2640.6,2640.5,0.04205311]
[1729239819105,3.78704,2640.6,2640.4,0.04212895]
[1729239819343,3.78704,2640.6,2640.5,0.04074244]
[1729239819703,3.78704,2640.6,2640.2,0.8204]
[1729239820423,3.78704,2640.6,2640.3,0.04089411]
[1729239820624,3.78704,2640.6,2640.2,0.8204]
[1729239820959,3.78704,2640.6,2640.3,0.04089411]
[1729239821236,3.78704,2640.6,2640.2,0.8204]
[1729239821411,3.78704,2640.6,2640.3,0.04089411]
[1729239821606,3.78704,2640.6,2640.2,0.8204]
[1729239821799,3.78704,2640.6,2640.3,0.04089411]
[1729239821994,3.78704,2640.6,2640.2,0.8204]
[1729239822432,3.7873,2640.4,2640.3,0.04089411]
[1729239822740,3.78788,2640.0,2639.6,0.8263]
[1729239823443,1.65428611,2640.1,2639.6,0.8263]
[1729239823444,1.65428611,2640.1,2639.6,4.61473]
[1729239824538,9.22964611,2640.2,2639.6,4.61473]
[1729239825055,9.22964611,2640.2,2639.6,0.8263]
[1729239825056,3.78788,2640.0,2639.6,0.8263]
[1729239827247,3.78788,2640.0,2639.7,0.04135868]
[1729239828114,5.44202611,2640.1,2639.7,0.04135868]
[1729239829553,3.78774,2640.1,2639.7,0.04135868]
[1729239829759,3.78791,2640.0,2639.7,0.04135868]
[1729239830140,3.78774,2640.1,2639.7,0.04135868]
[1729239834859,3.78763,2640.2,2639.8,0.7559]
[1729239835050,3.78763,2640.2,2639.9,0.04146068]
[1729239839467,10.00850611,2640.4,2639.9,3.82946068]
[1729239839672,3.7873,2640.4,2639.9,3.82946068]
[1729239840670,3.7873,2640.4,2639.9,0.04146068]
[1729239840873,3.78745,2640.3,2639.9,0.04146068]
[1729239841444,3.7876,2640.2,2639.9,0.04146068]
[1729239841749,3.78745,2640.3,2639.9,3.82947068]
[1729239843284,3.78745,2640.3,2639.9,0.04146068]
[1729239843503,3.78745,2640.3,2639.9,0.03998596]
[1729239845289,3.78722,2640.5,2639.9,1.69427207]
[1729239845459,3.78722,2640.5,2640.0,6.23009611]
[1729239845663,3.78722,2640.5,2640.1,3.82896473]
[1729239846037,3.78722,2640.5,2640.1,0.04123473]
[1729239846473,5.44150611,2640.5,2640.1,0.04123473]
[1729239848054,3.78722,2640.5,2640.1,0.04123473]
[1729239848499,5.44150611,2640.5,2640.1,0.04123473]
[1729239851112,3.78722,2640.5,2640.1,0.04123473]
[1729239852015,3.78722,2640.5,2640.2,0.7807]
[1729239852417,3.78722,2640.5,2640.3,0.04108303]
[1729239852718,3.78722,2640.5,2640.2,0.7807]
[1729239852919,3.78722,2640.5,2640.4,0.04100719]
[1729239853105,3.78722,2640.5,2640.3,0.04108303]
[1729239853417,3.78722,2640.5,2640.4,0.04100719]
[1729239853803,3.78722,2640.5,2640.2,0.7807]
[1729239854128,3.78722,2640.5,2640.3,0.04108303]
[1729239854332,3.78722,2640.5,2640.2,0.7807]
[1729239854624,3.78722,2640.5,2640.4,0.04100719]
[1729239854789,3.78722,2640.5,2640.3,0.04108303]
[1729239854989,3.78722,2640.5,2640.4,0.04100719]
[1729239855391,3.78722,2640.5,2640.2,0.7807]
[1729239855698,3.78722,2640.5,2640.3,0.04108303]
[1729239856244,3.78702,2640.6,2640.2,0.7807]
[1729239856526,3.78702,2640.6,2640.3,0.04108303]
[1729239856739,3.78702,2640.6,2640.2,0.7807]
[1729239856740,3.78702,2640.6,2640.2,1.76281771]
[1729239856918,3.78702,2640.6,2640.4,0.04097899]
[1729239857129,3.78697,2640.7,2640.2,5.55033771]
[1729239857435,3.78697,2640.7,2640.5,0.04090315]
[1729239857601,1.65428611,2640.6,2640.2,1.76282805]
[1729239857806,1.65428611,2640.6,2640.2,0.7807]
[1729239858006,4.79268861,2640.7,2640.1,3.78773]
[1729239858007,3.78744,2640.3,2640.1,0.98220064]
[1729239858225,1.65428611,2640.2,2639.9,2.54973822]
[1729239858601,1.65428611,2640.2,2639.7,1.18340317]
[1729239858602,3.78797,2640.0,2639.7,0.7793]
[1729239859448,3.78777,2640.1,2639.7,1.7621607]
[1729239859682,3.78777,2640.1,2639.7,0.7793]
[1729239860072,3.78777,2640.1,2639.7,1.76212389]
[1729239860306,3.78788,2640.0,2639.7,1.76212389]
[1729239860510,3.78788,2640.0,2639.7,0.7793]
[1729239861377,3.78788,2640.0,2639.6,1.77175934]
[1729239861704,3.78788,2640.0,2639.6,0.98282389]
[1729239862911,3.78802,2639.9,2639.6,0.98282389]
[1729239863617,2.46148611,2640.1,2639.6,0.98282389]
[1729239863789,4.59503,2640.1,2639.6,2.63711]
[1729239863987,4.59503,2640.1,2639.6,0.98282389]
[1729239864202,4.59503,2640.1,2639.6,0.98309399]
[1729239864722,4.59503,2640.1,2639.6,4.77154399]
[1729239865019,4.59503,2640.1,2639.6,6.4258301]
[1729239865192,4.59503,2640.1,2639.6,5.44273611]
[1729239865576,4.59503,2640.1,2639.7,0.98313649]
[1729239865918,3.78783,2640.1,2639.6,7.21480805]
[1729239866121,3.78783,2640.1,2639.7,0.98313649]
[1729239867922,3.78797,2640.0,2639.7,0.98313649]
[1729239868117,7.57594,2640.0,2639.6,1.77207194]
[1729239868415,3.78797,2640.0,2639.6,1.77207194]
[1729239868822,3.78797,2640.0,2639.6,0.78893545]
[1729239869001,3.78797,2640.0,2639.6,1.77215654]
[1729239869997,3.78797,2640.0,2639.6,0.98322109]
[1729239872299,3.78797,2640.0,2639.7,0.04088049]
[1729239872590,4.81137067,2640.0,2639.7,0.04088049]
[1729239879409,8.59935067,2640.0,2639.7,0.04088049]
[1729239879631,4.81137067,2640.0,2639.7,0.04088049]
[1729239881341,1.02340067,2640.0,2639.7,0.04088049]
[1729239881546,3.78773,2640.1,2639.7,0.04088049]
[1729239881748,3.78768,2640.2,2639.8,1.65428611]
[1729239882037,3.78745,2640.3,2639.9,6.25159611]
[1729239882347,3.78745,2640.3,2640.0,0.04065288]
[1729239882638,3.78719,2640.5,2640.0,1.69493899]
[1729239882808,3.7869,2640.7,2640.2,3.78759]
[1729239883009,3.7869,2640.7,2640.2,4.61189]
[1729239883215,3.7869,2640.7,2640.3,0.04043472]
[1729239883553,3.7869,2640.7,2640.2,6.26617611]
[1729239883735,3.7869,2640.7,2640.4,0.04035888]
[1729239884021,3.78689,2640.7,2640.4,0.8071]
[1729239884208,3.78676,2640.8,2640.5,0.04028304]
[1729239884416,0.92277361,2640.8,2640.6,1.65428611]
[1729239884720,3.78649,2641.0,2640.7,0.03988107]
[1729239884721,3.78645,2641.0,2640.7,0.03988107]
[1729239884927,4.165029,2641.1,2640.8,1.65428611]
[1729239884928,0.378639,2641.1,2640.8,1.65428611]
[1729239885135,8.93086687,2641.5,2640.9,4.5936]
[1729239885297,3.78595,2641.4,2640.9,4.63332944]
[1729239885501,3.78595,2641.4,2640.9,6.28761555]
[1729239886124,3.78595,2641.4,2640.9,2.50111555]
[1729239886849,0.99921961,2641.4,2641.0,1.65428611]
[1729239887004,5.44004611,2641.5,2640.9,6.28760555]
[1729239887204,5.44032611,2641.3,2641.1,0.03957783]
[1729239887408,3.78604,2641.3,2641.0,0.03965364]
[1729239887618,1.65428611,2641.4,2641.2,0.03950204]
[1729239887902,1.65428611,2641.4,2641.3,0.03942625]
[1729239888110,6.36274572,2641.4,2640.9,4.59368]
[1729239888302,6.36274572,2641.4,2641.3,0.03942625]
[1729239888504,6.36274572,2641.4,2640.9,4.59368]
[1729239888705,6.36274572,2641.4,2640.9,0.8071]
[1729239888706,4.55222,2641.3,2640.9,0.8071]
[1729239890234,6.20650611,2641.3,2640.9,0.8071]
[1729239892149,6.20650611,2641.3,2640.3,4.58632545]
[1729239892150,1.65428611,2641.2,2640.6,0.7762]
[1729239892514,7.57276,2641.1,2640.6,4.56318]
[1729239892713,3.78638,2641.1,2640.6,4.56318]
[1729239894808,5.44066611,2641.1,2640.6,4.56318]
[1729239895460,3.78638,2641.1,2640.6,4.56318]
[1729239896254,6.43996072,2641.1,2640.6,0.7762]
[1729239896435,2.65358072,2641.1,2640.6,4.5632]
[1729239896809,0.99929461,2641.1,2640.6,4.5632]
[1729239897268,2.65358072,2641.1,2640.6,4.5632]
[1729239897551,6.43989072,2641.1,2640.6,4.5632]
[1729239899555,3.78615,2641.2,2640.7,0.7673]
[1729239899713,3.78631,2641.1,2640.7,0.7673]
[1729239902324,3.78631,2641.1,2640.8,0.03814317]
[1729239902670,3.78615,2641.2,2640.7,4.55408]
[1729239902869,3.78615,2641.2,2640.9,0.03806736]
[1729239903068,4.70878961,2641.2,2640.9,0.03806736]
[1729239903283,4.70878961,2641.2,2640.7,4.55408]
[1729239903737,1.65428611,2641.3,2640.8,3.78665]
[1729239903938,7.57196,2641.4,2640.8,3.78665]
[1729239903939,3.78596,2641.4,2640.9,0.7947]
[1729239904165,3.78594,2641.4,2640.9,4.61933736]
[1729239904384,5.44022611,2641.4,2640.9,4.61933736]
[1729239904749,9.22616611,2641.4,2640.9,4.61933736]
[1729239905272,3.78594,2641.4,2640.9,4.61927736]
[1729239905487,3.78594,2641.4,2641.0,3.78643]
[1729239905771,3.78594,2641.4,2641.1,0.03791575]
[1729239906336,5.44022611,2641.4,2641.1,0.03791575]
[1729239908488,5.44038611,2641.3,2641.1,0.03791575]
[1729239908644,3.7863,2641.1,2640.9,0.7947]
[1729239908850,3.7863,2641.1,2640.6,3.787]
[1729239908851,1.65428611,2641.0,2640.6,3.787]
[1729239909084,1.65428611,2641.0,2640.4,4.55427]
[1729239909384,1.65428611,2641.0,2640.4,4.55422]
[1729239909385,1.65428611,2640.9,2640.4,4.55422]
[1729239909589,1.65428611,2640.9,2640.5,3.78709]
[1729239909746,1.65428611,2641.0,2640.6,3.78701]
[1729239910086,5.44058611,2641.1,2640.6,3.78701]
[1729239910284,3.78644,2641.0,2640.6,3.78701]
[1729239910458,1.65428611,2641.0,2640.6,3.78701]
[1729239910656,6.43839372,2641.1,2640.6,3.78694]
[1729239911281,6.43839372,2641.1,2640.6,3.78693]
[1729239911452,6.43839372,2641.1,2640.6,7.57387]
[1729239911789,6.43839372,2641.1,2640.6,3.78693]
[1729239912091,4.78410761,2641.1,2640.6,3.78693]
[1729239912253,6.43839372,2641.1,2640.6,3.78693]
[1729239912589,5.44058611,2641.1,2640.6,3.78693]
[1729239912763,3.7863,2641.1,2640.6,3.78693]
[1729239913092,5.44058611,2641.1,2640.6,3.78693]
[1729239913663,9.22697611,2641.1,2640.6,3.78693]
[1729239913859,1.65428611,2641.0,2640.4,9.99564611]
[1729239914084,5.44079611,2641.0,2640.5,3.78713]
[1729239915176,3.78667,2640.9,2640.4,4.55417]
[1729239915393,1.65428611,2640.7,2640.4,0.767]
[1729239915901,1.65428611,2640.5,2640.3,7.41]
[1729239916106,1.65428611,2640.5,2640.1,3.78773]
[1729239916107,1.65428611,2640.5,2640.2,0.7985]
[1729239916311,3.78712,2640.6,2640.2,0.7985]
[1729239917165,3.78712,2640.6,2640.3,0.04710787]
[1729239917362,4.70994261,2640.6,2640.2,0.7985]
[1729239917610,4.70994261,2640.6,2640.4,0.04700445]
[1729239917908,4.70994261,2640.6,2640.2,0.7985]
[1729239918106,4.70994261,2640.6,2640.5,0.04690103]
[1729239918316,4.70993261,2640.6,2640.2,0.7985]
[1729239918602,6.36421872,2640.6,2640.2,0.7985]
[1729239918813,3.78723,2640.5,2640.3,0.04318221]
[1729239919120,3.78723,2640.5,2640.2,0.85361089]
[1729239919413,3.78723,2640.5,2640.3,0.0551657]
[1729239919566,3.78723,2640.5,2640.2,0.7985]
[1729239919765,1.01514387,2640.5,2640.3,0.0551657]
[1729239920008,4.80230387,2640.5,2640.2,0.7985]
[1729239920190,4.80230387,2640.5,2640.3,0.05518128]
[1729239920509,8.58954387,2640.5,2640.2,0.7985]
[1729239920717,4.80230387,2640.5,2640.3,0.05518128]
[1729239921202,4.80230387,2640.5,2640.2,0.7985]
[1729239921413,3.78693,2640.7,2640.4,0.05511198]
[1729239921574,3.78693,2640.7,2640.2,4.58609]
[1729239921775,3.78693,2640.7,2640.4,0.04960078]
[1729239922104,3.78693,2640.7,2640.2,4.58609]
[1729239922318,7.57389,2640.7,2640.4,0.04960078]
[1729239922526,8.57797761,2640.7,2640.3,0.04971455]
[1729239922816,8.57797761,2640.7,2640.4,0.04960078]
[1729239923128,8.57797761,2640.7,2640.2,4.58609]
[1729239923435,8.57797761,2640.7,2640.3,0.04971455]
[1729239923584,5.44130611,2640.6,2640.2,0.7985]
[1729239923785,5.44145611,2640.5,2640.3,0.04971455]
[1729239924098,5.44145611,2640.5,2640.2,0.7985]
[1729239924298,5.44145611,2640.5,2640.4,0.04960078]
[1729239924479,5.44145611,2640.5,2640.3,0.04971455]
[1729239924684,6.5314385,2640.5,2640.4,0.04960078]
[1729239925625,6.5314385,2640.5,2640.0,4.58095]
[1729239925832,6.5314385,2640.5,2640.4,0.04960078]
[1729239925992,6.5314385,2640.5,2640.0,4.58095]
[1729239926191,6.5314385,2640.5,2640.4,0.04960078]
[1729239926533,7.3258385,2640.5,2640.4,0.04960078]
[1729239926733,4.58221,2640.1,2639.9,3.37176149]
[1729239926884,4.58221,2640.1,2639.7,0.7869]
[1729239927427,0.7944,2640.1,2639.8,0.0503162]
[1729239927589,0.7944,2640.1,2639.7,4.5752]
[1729239928126,0.7944,2640.1,2639.8,0.05032087]
[1729239928421,0.7944,2640.1,2639.7,4.5752]
[1729239928635,0.7944,2640.1,2639.8,0.05034891]
[1729239928810,1.65428611,2640.3,2639.7,1.76877957]
[1729239929123,3.78745,2640.3,2639.8,3.83841891]
[1729239931032,5.44189611,2640.2,2639.8,0.05034891]
[1729239931218,5.44189611,2640.2,2639.7,0.7869]
[1729239931422,3.78761,2640.2,2639.8,0.05056851]
[1729239931640,3.78761,2640.2,2639.7,0.7869]
[1729239931805,3.78761,2640.2,2639.8,0.05056851]
[1729239932009,3.78761,2640.2,2639.7,0.7869]
[1729239932235,5.44189611,2640.2,2639.8,0.05056851]
[1729239932544,5.44189611,2640.2,2639.7,4.57518]
[1729239932737,3.78761,2640.2,2639.9,0.0504547]
[1729239932899,3.78761,2640.2,2639.7,4.57518]
[1729239932900,6.44484672,2640.2,2639.7,4.57518]
[1729239933098,10.23250672,2640.2,2639.7,4.57518]
[1729239933436,6.44484672,2640.2,2639.7,4.57518]
[1729239933740,6.44484672,2640.2,2639.7,0.7869]
[1729239933741,5.44205611,2640.1,2639.7,0.7869]
[1729239934046,0.7517,2640.0,2639.6,3.78844]
[1729239935822,0.7517,2640.0,2639.6,5.44272611]
[1729239936146,0.7517,2640.0,2639.6,9.23116611]
[1729239936348,3.78777,2640.1,2639.6,5.44272611]
[1729239937447,3.78777,2640.1,2639.6,9.23108611]
[1729239937821,3.78777,2640.1,2639.6,5.44264611]
[1729239938382,3.78788,2640.0,2639.6,5.44264611]
[1729239938542,4.78747961,2640.1,2639.6,5.44264611]
[1729239939263,4.78747961,2640.1,2639.7,1.65428611]
[1729239939461,4.78747961,2640.1,2639.6,5.44264611]
[1729239939758,3.78777,2640.1,2639.6,5.44264611]
[1729239940322,3.78789,2640.0,2639.6,5.44264611]
[1729239940556,4.5551,2640.2,2639.9,0.7982]
[1729239941571,3.78752,2640.3,2639.9,0.7982]
[1729239942262,7.57507,2640.3,2639.9,0.7982]
[1729239942490,8.68781385,2640.3,2639.9,0.7982]
[1729239942640,3.7876,2640.2,2639.9,0.7982]
[1729239943375,4.90026385,2640.3,2639.9,0.7982]
[1729239943567,3.78752,2640.3,2639.9,0.7982]
[1729239944260,7.57505,2640.3,2639.9,0.7982]
[1729239944463,3.78752,2640.3,2639.9,0.7982]
[1729239944669,7.57505,2640.3,2639.9,0.7982]
[1729239945381,8.68779185,2640.3,2639.9,0.7982]
[1729239946656,4.90026185,2640.3,2639.9,0.7982]
[1729239947236,7.5751,2640.3,2639.9,0.7982]
[1729239947437,3.78752,2640.3,2639.9,0.7982]
[1729239947946,3.7876,2640.2,2639.9,0.7982]
[1729239951772,5.44180611,2640.3,2639.9,0.7982]
[1729239951773,3.78752,2640.3,2639.9,0.7982]
[1729239951975,6.36079081,2641.1,2639.4,0.78893545]
[1729239951976,4.53837,2641.0,2640.3,0.765]
[1729239952176,5.44131611,2640.6,2640.3,0.765]
[1729239952335,3.78723,2640.5,2640.3,0.765]
[1729239952866,9.22842611,2640.6,2640.3,0.765]
[1729239953070,5.44131611,2640.6,2640.3,0.765]
[1729239953263,3.78717,2640.5,2640.3,0.765]
[1729239953689,9.22842611,2640.6,2640.3,0.765]
[1729239953879,3.78716,2640.5,2640.3,0.765]
[1729239954393,5.44131611,2640.6,2640.3,0.765]
[1729239954968,3.78703,2640.6,2640.3,0.765]
[1729239956356,5.44131611,2640.6,2640.3,0.765]
[1729239957057,9.22845611,2640.6,2640.3,0.765]
[1729239957260,5.44131611,2640.6,2640.3,0.765]
[1729239957688,1.65428611,2640.4,2640.0,0.98115566]
[1729239957904,5.44195611,2640.2,2639.8,0.8301]
[1729239958272,3.78767,2640.2,2639.8,0.8301]
[1729239960677,5.44185611,2640.3,2639.8,0.8301]
[1729239960678,3.78773,2640.1,2639.8,0.8301]
[1729239961574,3.78773,2640.1,2639.8,1.11385973]
[1729239963757,3.78773,2640.1,2639.8,0.8301]
[1729239963958,3.78766,2640.2,2639.8,0.8301]
[1729239964501,3.78774,2640.1,2639.8,0.8301]
[1729239964686,3.78788,2640.0,2639.8,1.11391444]
[1729239965000,3.78774,2640.1,2639.8,0.8301]
[1729239965191,3.78774,2640.1,2639.8,1.11391444]
[1729239965694,3.78774,2640.1,2639.8,0.8301]
[1729239966000,3.78792,2640.0,2639.8,0.8301]
[1729239966204,3.78792,2640.0,2639.8,1.11394251]
[1729239966574,3.78774,2640.1,2639.8,1.11394251]
[1729239966768,3.78774,2640.1,2639.8,0.8301]
[1729239968517,3.78774,2640.1,2639.9,0.28387762]
[1729239968809,3.78774,2640.1,2639.8,0.8301]
[1729239969269,3.78774,2640.1,2639.9,0.28390518]
[1729239970230,3.78774,2640.1,2639.8,0.8301]
[1729239970231,3.78774,2640.1,2639.8,1.81294495]
[1729239970525,3.78774,2640.1,2639.9,0.28392766]
[1729239970665,3.78774,2640.1,2639.8,1.81294495]
[1729239970864,3.78774,2640.1,2639.9,0.28392743]
[1729239971112,3.78774,2640.1,2639.8,1.81294495]
[1729239971338,3.78774,2640.1,2639.9,0.28393875]
[1729239971542,3.78774,2640.1,2639.8,1.81294495]
[1729239971711,3.78774,2640.1,2639.9,0.28394467]
[1729239972042,3.78774,2640.1,2639.8,1.81294495]
[1729239972204,3.78774,2640.1,2639.9,0.2839634]
[1729239972534,3.78774,2640.1,2639.8,0.8301]
[1729239972735,3.78774,2640.1,2639.8,1.81312199]
[1729239972946,3.78761,2640.2,2639.8,1.81312199]
[1729239973114,3.78761,2640.2,2639.9,0.28396631]
[1729239973314,3.78761,2640.2,2640.0,0.28396631]
[1729239973640,7.5753,2640.2,2639.8,0.8301]
[1729239973837,7.5753,2640.2,2639.9,0.28396607]
[1729239974044,3.78774,2640.1,2640.0,0.28396607]
[1729239974212,3.78774,2640.1,2639.8,1.812913]
[1729239974406,3.78774,2640.1,2639.9,0.28396732]
[1729239974608,3.78774,2640.1,2639.8,1.812913]
[1729239974835,3.78774,2640.1,2639.9,0.28396712]
[1729239975067,7.57533,2640.2,2639.8,1.812913]
[1729239975341,3.78766,2640.2,2639.9,1.26677997]
[1729239975547,3.78766,2640.2,2640.0,0.28396697]
[1729239975749,3.78766,2640.2,2639.9,0.982813]
[1729239975907,3.78766,2640.2,2640.0,0.28396207]
[1729239976112,3.78759,2640.2,2640.1,0.2839512]
[1729239976432,3.78759,2640.2,2639.9,0.982813]
[1729239976750,3.78759,2640.2,2640.0,0.28395255]
[1729239976945,3.78739,2640.4,2640.1,1.05685255]
[1729239977157,3.78739,2640.4,2640.1,0.7729]
[1729239978342,5.44130611,2640.6,2640.1,0.7729]
[1729239978343,3.78702,2640.6,2640.1,0.7729]
[1729239978511,4.96293384,2640.6,2640.1,6.21485611]
[1729239978711,3.78688,2640.7,2640.3,0.7642]
[1729239979199,3.78636,2641.1,2640.7,0.7642]
[1729239979485,3.78636,2641.1,2640.5,1.26589314]
[1729239979486,3.78681,2640.8,2640.5,1.26589314]
[1729239979685,3.78668,2640.9,2640.4,0.7642]
[1729239979980,7.57335,2640.9,2640.4,0.7642]
[1729239980185,5.44095611,2640.9,2640.4,0.7642]
[1729239980685,5.44095611,2640.9,2640.4,1.04792394]
[1729239980982,10.26869432,2640.9,2640.4,1.04792394]
[1729239981280,6.48202432,2640.9,2640.4,1.04792394]
[1729239981486,6.48202432,2640.9,2640.4,2.02941067]
[1729239981783,3.78704,2640.6,2640.4,0.28372394]
[1729239981957,3.78704,2640.6,2640.3,0.28368963]
[1729239982349,3.78744,2640.3,2640.2,0.28368963]
[1729239982572,0.7822,2640.3,2639.8,1.26517885]
[1729239982755,5.44225611,2640.0,2639.7,1.06308963]
[1729239983053,7.57593,2640.0,2639.7,1.06308963]
[1729239983252,7.57593,2640.0,2639.7,0.7794]
[1729239983488,3.78796,2640.0,2639.7,1.06308963]
[1729239983784,3.78796,2640.0,2639.7,0.7794]
[1729239983991,3.78796,2640.0,2639.7,1.06308963]
[1729239985651,7.57595,2640.0,2639.7,1.06308963]
[1729239985847,7.57592,2640.0,2639.7,0.7794]
[1729239986049,3.78796,2640.0,2639.7,0.7794]
[1729239986692,3.78802,2639.9,2639.6,0.28368963]
[1729239987068,4.60016,2640.0,2639.6,0.28368963]
[1729239987587,3.78776,2640.1,2639.7,1.65428611]
[1729239987794,3.78776,2640.1,2639.7,0.28368963]
[1729239988285,3.78776,2640.1,2639.6,6.42478493]
[1729239988444,3.78776,2640.1,2639.7,1.93799286]
[1729239989501,4.59966,2640.3,2639.9,2.41518611]
[1729239989795,3.78746,2640.3,2639.9,2.41518611]
[1729239990131,6.78738,2640.4,2639.9,2.69889286]
[1729239990389,3.78716,2640.5,2640.1,1.65428611]
[1729239990596,3.787,2640.7,2640.2,6.20276611]
[1729239990890,3.78708,2640.6,2640.2,0.7609]
[1729239991196,3.78708,2640.6,2640.2,1.0445516]
[1729239991495,3.787,2640.7,2640.2,7.46778827]
[1729239991791,3.78699,2640.7,2640.2,6.20273611]
[1729239992164,7.57397,2640.7,2640.2,6.20273611]
[1729239992380,7.57397,2640.7,2640.2,4.54845]
[1729239992591,7.57397,2640.7,2640.2,6.48635479]
[1729239992888,7.57397,2640.7,2640.2,4.54845]
[1729239993098,7.57397,2640.7,2640.2,4.83206866]
[1729239993590,3.78698,2640.7,2640.2,6.48635477]
[1729239993791,3.78698,2640.7,2640.2,6.20273611]
[1729239994356,7.57399,2640.7,2640.2,6.20273611]
[1729239994582,3.78698,2640.7,2640.2,6.20273611]
[1729239994789,7.57396,2640.7,2640.2,6.20273611]
[1729239994988,3.78698,2640.7,2640.2,6.20273611]
[1729239995892,3.78698,2640.7,2640.3,1.65428611]
[1729239996188,3.78674,2640.8,2640.3,1.93785472]
[1729239996556,3.78688,2640.7,2640.3,1.93785472]
[1729239996752,3.78674,2640.8,2640.3,1.65428611]
[1729239996965,3.78668,2640.9,2640.4,0.8327]
[1729239997188,5.44067611,2641.1,2640.6,1.65428611]
[1729239997189,3.78641,2641.1,2640.6,1.65428611]
[1729239997374,3.78641,2641.1,2640.6,6.27399611]
[1729239997582,7.57221,2641.3,2640.7,3.8626052]
[1729239997784,7.57221,2641.3,2640.7,3.78687]
[1729239998191,3.78609,2641.3,2640.7,3.78687]
[1729239998378,7.5722,2641.3,2640.7,3.78687]
[1729239998780,3.78616,2641.2,2640.7,5.44115611]
[1729239999317,3.78616,2641.2,2640.7,1.65428611]
[1729240000512,3.78616,2641.2,2640.7,5.44107611]
[1729240000674,3.78616,2641.2,2640.8,2.48698611]
[1729240001095,3.78616,2641.2,2640.8,0.8327]
[1729240003623,3.78593,2641.4,2641.0,2.43698611]
[1729240003824,3.78567,2641.6,2641.1,1.65428611]
[1729240003975,3.78581,2641.5,2641.0,6.22339611]
[1729240004402,3.7859,2641.4,2641.0,0.7827]
[1729240006424,3.7863,2641.1,2640.6,0.8085]
[1729240006579,3.7863,2641.1,2640.6,2.46278611]
[1729240006780,2.44718611,2641.2,2640.7,5.44114611]
[1729240006781,4.57907,2641.2,2640.7,5.44114611]
[1729240007103,4.57907,2641.2,2640.7,3.78686]
[1729240007420,4.57907,2641.2,2640.7,5.44114611]
[1729240007996,4.57907,2641.2,2640.7,3.78686]
[1729240009027,3.78617,2641.2,2640.7,3.78686]
[1729240010617,3.78617,2641.2,2640.9,0.7934]
[1729240010918,3.7861,2641.3,2640.9,0.7934]
[1729240013418,3.78597,2641.4,2640.9,0.7934]
[1729240013584,3.78597,2641.4,2640.9,5.44078611]
[1729240013929,3.78597,2641.4,2641.0,0.7934]
[1729240014293,5.44025611,2641.4,2641.0,0.7934]
[1729240014593,3.78597,2641.4,2641.0,0.7934]
[1729240014772,5.44025611,2641.4,2641.0,0.7934]
[1729240016892,1.65428611,2641.3,2641.0,0.7934]
[1729240018204,5.44025611,2641.4,2641.0,0.7934]
[1729240019508,3.78603,2641.3,2641.0,0.7934]
[1729240019905,5.44025611,2641.4,2641.0,0.7934]
[1729240020407,1.65428611,2641.3,2641.0,0.7934]
[1729240020609,5.44031611,2641.3,2641.0,0.7934]
[1729240020922,5.44031611,2641.3,2640.8,0.7613]
[1729240020923,3.78651,2641.0,2640.8,0.7613]
[1729240021530,3.78572,2641.5,2641.0,0.8032]
[1729240021729,3.78572,2641.5,2641.0,4.58956]
[1729240022031,5.44000611,2641.5,2641.0,4.58964]
[1729240022389,5.44000611,2641.5,2641.0,4.5896]
[1729240022914,5.44000611,2641.5,2641.0,0.8032]
[1729240024213,3.78561,2641.6,2641.1,0.8133]
[1729240024398,3.78561,2641.6,2641.1,4.59954]
[1729240024934,5.43989611,2641.6,2641.1,4.59954]
[1729240025231,3.78561,2641.6,2641.1,4.59954]
[1729240025533,5.43989611,2641.6,2641.1,4.59954]
[1729240025696,3.78572,2641.5,2641.1,4.59954]
[1729240026213,3.78577,2641.5,2641.1,0.8133]
[1729240026528,3.78569,2641.6,2641.1,5.44050611]
[1729240026825,3.78569,2641.6,2641.2,0.7865]
[1729240027122,3.78551,2641.7,2641.2,4.57258]
[1729240027422,5.43979611,2641.7,2641.2,4.57258]
[1729240027594,5.43966611,2641.8,2641.3,3.78599]
[1729240027824,1.65428611,2641.7,2641.3,3.78599]
[1729240028323,5.43973611,2641.7,2641.2,4.57263]
[1729240029925,3.78537,2641.8,2641.4,3.78585]
[1729240030123,3.78537,2641.8,2641.5,0.8319]